[Event "Czech Youth U14 Boys 2024"]
[Site "Kouty nad Desnou"]
[Date "2024.03.12"]
[Round "5.12"]
[White "Lorenc, Matej"]
[Black "Stary, Vojtech"]
[Result "1-0"]
[ECO "B49"]
[WhiteElo "1637"]
[BlackElo "1950"]
[Annotator "RC"]
[PlyCount "127"]
[EventDate "2024.03.10"]
[EventType "swiss"]
[EventCountry "CZE"]
[SourceTitle "playchess.com"]
[Source "ChessBase"]
[SourceQuality "1"]
[TimeControl "40/5400+30:1800+30"]

1. e4 {[%emt 0:00:01]} c5 {[%emt 0:00:04]} 2. Nf3 {[%emt 0:00:06]} e6 {[%emt 0:00:05]} 3. d4 {[%emt 0:00:28]} cxd4 {[%emt 0:00:04]} 4. Nxd4 {[%emt 0:00:07]} Nc6 {[%emt 0:00:05]} 5. Nc3 {[%emt 0:00:30]} Qc7 {[%emt 0:00:08]} 6. Be3 {[%emt 0:02:15]} a6 {[%emt 0:00:04]} 7. Be2 Nf6 {[%emt 0:00:12]} 8. O-O {[%emt 0:04:12]} Be7 {[%emt 0:00:39]} 9. Qd2 {[%emt 0:00:50]} O-O {[%emt 0:01:10]} 10. f4 {[%emt 0:00:33]} b5 {[%emt 0:03:22]} 11. e5 {[%emt 0:00:53]} Ne8 {[%emt 0:05:00]} 12. Nxc6 {[%emt 0:09:33]} dxc6 {[%emt 0:01:04]} 13. Ne4 {[%emt 0:00:31]} c5 {[%emt 0:03:08]} 14. c4 {[%emt 0:01:12]} Bb7 {[%emt 0:03:26]} 15. Bf3 {[%emt 0:03:23]} b4 {[%emt 0:05:35]} 16. Qf2 {[%emt 0:03:07]} Rc8 {[%emt 0:02:27]} 17. Rfd1 {[%emt 0:04:14]} f6 {[%emt 0:14:11]} 18. Nd6 {[%emt 0:09:02]} Bxd6 {[%emt 0:17:47]} 19. Bxb7 {[%emt 0:08:27]} fxe5 {[%emt 0:06:25]} 20. Bxc8 {[%emt 0:06:43]} Qxc8 {[%emt 0:00:53]} 21. Qc2 {[%emt 0:02:16]} exf4 {[%emt 0:00:43]} 22. Bf2 {[%emt 0:00:44]} Rf6 {[%emt 0:05:41]} 23. Qe4 {[%emt 0:03:28]} Rg6 {[%emt 0:00:41]} 24. Rd3 {[%emt 0:05:14]} Kf7 {[%emt 0:09:32]} 25. Rad1 {[%emt 0:04:20]} Nf6 {[%emt 0:00:55]} 26. Qf3 {[%emt 0:01:01]} Bc7 {[%emt 0:01:03]} 27. Qc6 {[%emt 0:01:36]} f3 {[%emt 0:04:16]} 28. Rd7+ {[%emt 0:00:57]} Nxd7 {[%emt 0:00:58]} 29. Rxd7+ {[%emt 0:00:26]} Kg8 {[%emt 0:02:41]} 30. Qxc7 {[%emt 0:01:44]} Rxg2+ {[%emt 0:00:48]} 31. Kf1 {[%emt 0:00:17]} Qxc7 {[%emt 0:00:31]} 32. Rxc7 {[%emt 0:00:12]} Rxh2 {[%emt 0:00:13]} 33. Rxc5 {[%emt 0:00:15]} h5 {[%emt 0:07:16]} 34. Re5 {[%emt 0:01:54]} Rh1+ {[%emt 0:02:20]} 35. Bg1 {[%emt 0:00:27]} Rh4 {[%emt 0:00:18]} 36. b3 {[%emt 0:00:25]} Rf4 {[%emt 0:01:28]} 37. Kf2 {[%emt 0:01:27]} h4 {[%emt 0:00:21]} 38. Re3 {[%emt 0:00:58]} Rd4 {[%emt 0:00:37]} 39. Kxf3 {[%emt 0:01:10]} g5 {[%emt 0:00:23]} 40. Rxe6 {[%emt 0:02:13]} Rd3+ {[%emt 0:01:43]} 41. Be3 {[%emt 0:30:25]} Kf7 {[%emt 0:30:47]} 42. Re5 {[%emt 0:03:54]} Kf6 {[%emt 0:01:48]} 43. Rxg5 {[%emt 0:01:27]} Rxe3+ {[%emt 0:00:00]} 44. Kxe3 {[%emt 0:00:00]} Kxg5 {[%emt 0:00:00]} 45. Kf2 {[%emt 0:00:00]} Kf4 {[%emt 0:00:00]} 46. Kg2 {[%emt 0:00:00]} Ke4 {[%emt 0:00:00]} 47. Kh3 {[%emt 0:00:00]} Kd4 {[%emt 0:00:00]} 48. Kxh4 {[%emt 0:00:00]} a5 {[%emt 0:00:00]} 49. Kg3 {[%emt 0:00:00]} a4 {[%emt 0:00:00]} 50. Kf3 {[%emt 0:00:00]} axb3 {[%emt 0:00:00]} 51. axb3 {[%emt 0:00:00]} Kc3 {[%emt 0:00:00]} 52. c5 {[%emt 0:00:00]} Kxb3 {[%emt 0:00:00]} 53. c6 {[%emt 0:00:00]} Ka2 {[%emt 0:00:00]} 54. c7 {[%emt 0:00:00]} b3 {[%emt 0:00:00]} 55. c8=Q {[%emt 0:00:00]} b2 {[%emt 0:00:00]} 56. Qa6+ {[%emt 0:00:00]} Kb3 {[%emt 0:00:00]} 57. Qd3+ {[%emt 0:00:00]} Ka2 {[%emt 0:00:00]} 58. Qc2 {[%emt 0:00:00]} Ka1 {[%emt 0:00:00]} 59. Qa4+ {[%emt 0:00:00]} Kb1 {[%emt 0:00:00]} 60. Ke2 {[%emt 0:00:00]} Kc1 {[%emt 0:00:00]} 61. Qc4+ {[%emt 0:00:00]} Kb1 {[%emt 0:00:00]} 62. Kd2 {[%emt 0:00:00]} Ka1 {[%emt 0:00:00]} 63. Qa4+ {[%emt 0:00:00]} Kb1 {[%emt 0:00:00]} 64. Kc3 {[%emt 0:00:00]} 1-0

[Event "Czech Youth U14 Boys 2024"]
[Site "Kouty nad Desnou"]
[Date "2024.03.13"]
[Round "6.1"]
[White "Krivka, Matej"]
[Black "Soucek, Andrej"]
[Result "0-1"]
[ECO "C56"]
[WhiteElo "1850"]
[BlackElo "1825"]
[Annotator "NA"]
[PlyCount "64"]
[EventDate "2024.03.10"]
[EventType "swiss"]
[EventCountry "CZE"]
[SourceTitle "playchess.com"]
[Source "ChessBase"]
[SourceQuality "1"]
[TimeControl "40/5400+30:1800+30"]

1. e4 {[%emt 0:00:02]} e5 {[%emt 0:00:09]} 2. Nf3 {[%emt 0:00:10]} Nc6 {[%emt 0:00:05]} 3. d4 {[%emt 0:00:18]} exd4 {[%emt 0:00:08]} 4. Bc4 {[%emt 0:00:12]} Nf6 {[%emt 0:00:20]} 5. O-O {[%emt 0:00:22]} Nxe4 {[%emt 0:00:14]} 6. Re1 {[%emt 0:00:17]} d5 {[%emt 0:00:21]} 7. Bxd5 {[%emt 0:00:18]} Qxd5 {[%emt 0:00:14]} 8. Nc3 {[%emt 0:00:11]} Qh5 {[%emt 0:00:37]} 9. Nxe4 {[%emt 0:00:35]} Be6 {[%emt 0:00:50]} 10. Bg5 {[%emt 0:01:02]} Bd6 {[%emt 0:00:55]} 11. Nxd6+ {[%emt 0:02:30]} cxd6 {[%emt 0:00:47]} 12. Bf4 {[%emt 0:01:04]} Qd5 {[%emt 0:00:22]} 13. c3 {[%emt 0:03:14] C56: Two Knights: 4 d4 exd4 5 0-0 Nxe4.} Rc8 {[%emt 0:05:22]} 14. Nxd4 {[%emt 0:02:42]} Nxd4 {[%emt 0:00:14]} 15. Qxd4 {[%emt 0:01:08]} Qxd4 {[%emt 0:00:39]} 16. cxd4 {[%emt 0:00:06]} Kd7 {[%emt 0:00:34]} 17. Rec1 {[%emt 0:07:35]} Rxc1+ {[%emt 0:06:28]} 18. Rxc1 {[%emt 0:00:28]} Bxa2 {[%emt 0:01:15]} 19. Ra1 {[%emt 0:01:13]} Bd5 {[%emt 0:02:02]} 20. Rxa7 {[%emt 0:03:07]} Rc8 {[%emt 0:03:59]} 21. Ra5 {[%emt 0:05:09]} Ke6 {[%emt 0:04:00]} 22. Rb5 {[%emt 0:05:03]} Rc4 {[%emt 0:10:05]} 23. Be3 {[%emt 0:02:40]} f5 {[%emt 0:03:46]} 24. h4 {[%emt 0:09:37]} Bc6 {[%emt 0:01:51]} 25. Rb3 {[%emt 0:05:36]} Kd5 {[%emt 0:24:47]} 26. Kh2 {[%emt 0:13:19]} b5 {[%emt 0:03:40]} 27. Kg3 {[%emt 0:10:40]} Rc2 {[%emt 0:03:21]} 28. Rb4 {[%emt 0:03:47]} Rc4 $11 {[%emt 0:05:57]} 29. Rb3 {[%emt 0:02:20]} b4 {[%emt 0:03:57]} 30. Bd2 {[%emt 0:04:48]} Rxd4 {[%emt 0:01:31]} 31. Bxb4 {[%emt 0:02:26]} Ba4 {[%emt 0:00:41]} 32. Re3 {[%emt 0:02:21]} f4+ {[%emt 0:00:16]} 0-1

[Event "Czech Youth U14 Boys 2024"]
[Site "Kouty nad Desnou"]
[Date "2024.03.13"]
[Round "6.2"]
[White "Mydlar, Matej"]
[Black "Kroulik, Vaclav"]
[Result "0-1"]
[ECO "B89"]
[WhiteElo "1819"]
[BlackElo "1936"]
[Annotator "RC"]
[PlyCount "76"]
[EventDate "2024.03.10"]
[EventType "swiss"]
[EventCountry "CZE"]
[SourceTitle "playchess.com"]
[Source "ChessBase"]
[SourceQuality "1"]
[TimeControl "40/5400+30:1800+30"]

1. e4 {[%emt 0:00:11]} c5 {[%emt 0:00:06]} 2. Nf3 {[%emt 0:00:25]} d6 {[%emt 0:00:06]} 3. d4 {[%emt 0:00:27]} cxd4 {[%emt 0:00:04]} 4. Nxd4 {[%emt 0:00:04]} Nf6 {[%emt 0:00:16]} 5. Nc3 {[%emt 0:00:05]} Nc6 {[%emt 0:00:24]} 6. Bc4 {[%emt 0:00:11]} e6 {[%emt 0:01:13]} 7. Be3 {[%emt 0:00:27]} a6 {[%emt 0:03:32]} 8. Bb3 {[%emt 0:00:34]} Be7 {[%emt 0:00:56]} 9. O-O {[%emt 0:01:49]} O-O {[%emt 0:02:09]} 10. f4 {[%emt 0:03:47]} Nxd4 {[%emt 0:17:21]} 11. Bxd4 {[%emt 0:02:27]} b5 {[%emt 0:02:06]} 12. a3 {[%emt 0:17:03]} Qc7 {[%emt 0:07:13]} 13. Qe2 {[%emt 0:04:56]} Qb7 {[%emt 0:06:48]} 14. Rad1 {[%emt 0:15:02]} e5 {[%emt 0:11:52]} 15. fxe5 {[%emt 0:10:45]} dxe5 16. Bxe5 {[%emt 0:13:31]} Bg4 {[%emt 0:01:07]} 17. Qf2 {[%emt 0:00:29]} Bxd1 {[%emt 0:02:26]} 18. Bxf6 {[%emt 0:09:32]} Bxf6 {[%emt 0:01:05]} 19. Bd5 {[%emt 0:00:46]} Qd7 {[%emt 0:02:12]} 20. Rxd1 {[%emt 0:00:59]} Rac8 {[%emt 0:03:46]} 21. Bb3 {[%emt 0:04:49]} Qg4 {[%emt 0:05:10]} 22. h3 {[%emt 0:00:43]} Qh4 {[%emt 0:00:53]} 23. Nd5 {[%emt 0:01:31]} Qxf2+ {[%emt 0:02:25]} 24. Kxf2 {[%emt 0:00:10]} Bg5 {[%emt 0:06:08]} 25. Kf3 {[%emt 0:02:08]} Rfe8 {[%emt 0:03:21]} 26. g3 {[%emt 0:03:59]} Rc6 {[%emt 0:05:25]} 27. h4 {[%emt 0:00:27]} Bf6 {[%emt 0:01:05]} 28. Kf4 {[%emt 0:03:39]} Be5+ {[%emt 0:01:28]} 29. Ke3 {[%emt 0:00:18]} h5 {[%emt 0:02:56]} 30. Nf4 {[%emt 0:01:43]} Bxb2 {[%emt 0:01:09]} 31. Rd7 {[%emt 0:00:34]} Rf8 {[%emt 0:00:52]} 32. Nxh5 {[%emt 0:01:23]} Bxa3 {[%emt 0:00:42]} 33. e5 {[%emt 0:00:12]} Bb2 {[%emt 0:05:14]} 34. Ke4 {[%emt 0:00:32]} g6 {[%emt 0:01:38]} 35. Nf6+ {[%emt 0:00:28]} Kg7 {[%emt 0:00:08]} 36. Nd5 {[%emt 0:00:56]} Re6 {[%emt 0:01:06]} 37. Nc3 {[%emt 0:00:57]} Ree8 {[%emt 0:00:45]} 38. Rd3 {[%emt 0:00:22]} b4 {[%emt 0:00:57]} 0-1

[Event "Czech Youth U14 Boys 2024"]
[Site "Kouty nad Desnou"]
[Date "2024.03.13"]
[Round "6.3"]
[White "Popov, Roman"]
[Black "Svadlenka, Michal"]
[Result "1-0"]
[ECO "B08"]
[WhiteElo "2353"]
[BlackElo "1869"]
[Annotator "TA"]
[PlyCount "49"]
[EventDate "2024.03.10"]
[EventType "swiss"]
[EventCountry "CZE"]
[SourceTitle "playchess.com"]
[Source "ChessBase"]
[SourceQuality "1"]
[TimeControl "40/5400+30:1800+30"]

{[%evp 13,49,49,48,53,47,57,63,51,52,48,74,9,60,36,58,15,44,18,26,13,13,0,188,197,195,106,126,129,152,139,155,157,323,327,462,446,1035,1029]} 1. d4 {[%emt 0:00:12]} Nf6 {[%emt 0:00:15]} 2. Nf3 {[%emt 0:00:11]} g6 {[%emt 0:00:10]} 3. Nc3 {[%emt 0:00:13]} Bg7 {[%emt 0:00:41]} 4. e4 {[%emt 0:00:17][%cal Be2e4,Be4e5][%mdl 32]} d6 {[%emt 0:00:56]} 5. Be2 {[%emt 0:00:17]} O-O {[%emt 0:00:35]} 6. O-O {[%emt 0:00:23]} Nbd7 {[%emt 0:04:57]} 7. e5 {[%emt 0:00:52]} Ne8 {[%emt 0:11:12]} 8. Bf4 {[%emt 0:00:18]} Nb6 {[%emt 0:08:43]} 9. h3 {[%emt 0:06:59]} c6 {[%emt 0:05:22]} 10. a4 {[%emt 0:11:19][%cal Ba2a4,Ba4a5][%mdl 32] Weiß steht aktiver. Weiß steht etwas besser.} dxe5 {[%emt 0:07:08]} 11. dxe5 {[%emt 0:01:29]} Nc7 {[%emt 0:00:17]} 12. Bg5 {[%emt 0:13:04]} ({Besser ist} 12. a5 $16 Qxd1 13. Rfxd1) 12... f6 {[%emt 0:09:14]} (12... Nd7 $11) 13. Bh4 {[%emt 0:04:41]} Be6 {[%emt 0:02:16]} 14. Nd4 {[%emt 0:10:29]} Bf7 {[%emt 0:02:00]} 15. a5 $36 {[%emt 0:05:04][%mdl 2048] Weiss drückt.} Nbd5 {[%emt 0:11:54]} 16. Nxd5 {[%emt 0:02:27]} Qxd5 {[%emt 0:08:40]} 17. Bf3 {[%emt 0:04:44]} Qd7 {[%emt 0:03:18] [#]} ({Viel schwächer wäre} 17... Qxe5 $6 18. Bg3 Qc5 19. Bxc7 $16) (17... Qc5 $11 {und Schwarz muss sich keine Sorgen machen.} 18. exf6 exf6) 18. Nxc6 $1 $18 {[%emt 0:03:54][%mdl 512]} Qe8 {[%emt 0:07:45]} 19. Nb4 {[%emt 0:09:45]} (19. exf6 $18 Bxf6 20. Bxf6 exf6 21. Qd6 bxc6 22. Qxc7) 19... Qb5 {[%emt 0:01:44]} 20. c3 {[%emt 0:04:44]} g5 {[%emt 0:05:00]} 21. exf6 {[%emt 0:06:16]} exf6 {[%emt 0:00:39][%cal Oa8d8] [#] Droht stark ...Rad8!} 22. Bg3 {[%emt 0:00:31]} Ne6 {[%emt 0:01:14]} (22... Rad8 $16) 23. Be2 {[%emt 0:04:32]} Qc5 {[%emt 0:01:09]} (23... Qe8 {ist eine bessere Verteidigung.} 24. Bd6 Kh8) 24. Bd6 {[%emt 0:01:03]} Qf5 {[%emt 0:01:45]} (24... Qc8 $142 25. Bxf8 Qxf8) 25. Bd3 {[%emt 0:00:42] Gewichteter Fehlerwert: Weiß=0.20 (präzise) /Schwarz=0.50.  Verlustzug:     	---       	Schwarz=2     Fehler:       	Weiß=2     	Schwarz=3     Ungenau:       	Weiß=1     	Schwarz=2     OK:         	Weiß=8     	Schwarz=2     Bester:       	Weiß=1     	---} 1-0

[Event "Czech Youth U14 Boys 2024"]
[Site "Kouty nad Desnou"]
[Date "2024.03.13"]
[Round "6.4"]
[White "Sotek, Simon"]
[Black "Martirosyan, David"]
[Result "0-1"]
[ECO "B62"]
[WhiteElo "1793"]
[BlackElo "1981"]
[Annotator "RC"]
[PlyCount "98"]
[EventDate "2024.03.10"]
[EventType "swiss"]
[EventCountry "CZE"]
[SourceTitle "playchess.com"]
[Source "ChessBase"]
[SourceQuality "1"]
[TimeControl "40/5400+30:1800+30"]

1. e4 {[%emt 0:00:06]} c5 {[%emt 0:00:49]} 2. Nf3 {[%emt 0:00:22]} d6 {[%emt 0:00:26]} 3. d4 {[%emt 0:00:12]} cxd4 {[%emt 0:00:16]} 4. Nxd4 {[%emt 0:00:11]} Nf6 {[%emt 0:00:18]} 5. Nc3 {[%emt 0:01:27]} Nc6 {[%emt 0:00:36]} 6. Bg5 {[%emt 0:02:36]} e6 7. g3 {[%emt 0:00:07]} a6 {[%emt 0:04:35]} 8. Nxc6 {[%emt 0:00:30]} bxc6 {[%emt 0:00:17]} 9. Bg2 {[%emt 0:00:17]} Bb7 {[%emt 0:02:16]} 10. O-O {[%emt 0:04:57]} Be7 {[%emt 0:02:24]} 11. a4 {[%emt 0:08:49]} a5 {[%emt 0:02:58]} 12. Qd3 {[%emt 0:01:38]} Ba6 {[%emt 0:03:56]} 13. Qd2 {[%emt 0:05:17]} Bxf1 {[%emt 0:00:32]} 14. Rxf1 {[%emt 0:00:29]} O-O {[%emt 0:04:48]} 15. Kh1 {[%emt 0:08:09]} d5 {[%emt 0:05:39]} 16. exd5 {[%emt 0:05:25]} exd5 {[%emt 0:00:28]} 17. Qd3 {[%emt 0:07:52]} h6 {[%emt 0:02:32]} 18. Bf4 {[%emt 0:02:02]} Bd6 {[%emt 0:02:11]} 19. Be3 {[%emt 0:01:24]} Re8 {[%emt 0:01:32]} 20. f3 {[%emt 0:03:41]} Qb8 {[%emt 0:05:01]} 21. f4 {[%emt 0:03:33]} Qb4 {[%emt 0:05:03]} 22. Bd4 {[%emt 0:01:05]} Nd7 {[%emt 0:03:14]} 23. Bh3 {[%emt 0:16:17]} Nc5 {[%emt 0:07:57]} 24. Bxc5 {[%emt 0:00:50]} Bxc5 {[%emt 0:03:02]} 25. Bd7 {[%emt 0:01:57]} Re3 {[%emt 0:00:48]} 26. Qd2 {[%emt 0:00:50]} Qb6 {[%emt 0:01:40]} 27. Nd1 {[%emt 0:00:54]} Re7 {[%emt 0:00:57]} 28. Bf5 {[%emt 0:00:18]} Rae8 {[%emt 0:01:01]} 29. Bd3 {[%emt 0:00:44]} Bb4 {[%emt 0:02:43]} 30. c3 {[%emt 0:01:14]} Bc5 {[%emt 0:00:24]} 31. Kg2 {[%emt 0:05:29]} Qb3 {[%emt 0:00:53]} 32. f5 {[%emt 0:00:45]} f6 {[%emt 0:02:28]} 33. Rf4 {[%emt 0:03:12]} Re1 {[%emt 0:08:12]} 34. Nf2 {[%emt 0:01:39]} R8e5 {[%emt 0:09:13]} 35. Rg4 {[%emt 0:01:06]} Kh7 {[%emt 0:02:46]} 36. Kh3 {[%emt 0:02:29]} Bxf2 {[%emt 0:03:08]} 37. Qxf2 {[%emt 0:00:15]} Qd1 {[%emt 0:00:35]} 38. Bf1 {[%emt 0:10:51]} Rxf1 {[%emt 0:01:21]} 39. Qa7 {[%emt 0:00:03]} Qxg4+ {[%emt 0:01:58]} 40. Kxg4 {[%emt 0:00:05]} Re4+ {[%emt 0:04:23]} 41. Kh3 {[%emt 0:30:13]} Rxf5 {[%emt 0:32:41]} 42. Kg2 {[%emt 0:00:00]} Re2+ {[%emt 0:00:00]} 43. Kg1 {[%emt 0:00:00]} Rxb2 {[%emt 0:00:00]} 44. Qd4 {[%emt 0:00:00]} Rff2 {[%emt 0:00:00]} 45. Qd3+ {[%emt 0:00:00]} f5 {[%emt 0:00:00]} 46. g4 {[%emt 0:00:00]} Rbd2 {[%emt 0:00:00]} 47. Qb1 {[%emt 0:00:00]} Rg2+ {[%emt 0:00:00]} 48. Kh1 {[%emt 0:00:00]} Rxh2+ {[%emt 0:00:00]} 49. Kg1 {[%emt 0:00:00]} Rdg2+ {[%emt 0:00:00]} 0-1

[Event "Czech Youth U14 Boys 2024"]
[Site "Kouty nad Desnou"]
[Date "2024.03.13"]
[Round "6.5"]
[White "Vana, Jan"]
[Black "Pogorelskiy, Boris"]
[Result "1-0"]
[ECO "C41"]
[WhiteElo "1908"]
[BlackElo "1747"]
[Annotator "RC"]
[PlyCount "43"]
[EventDate "2024.03.10"]
[EventType "swiss"]
[EventCountry "CZE"]
[SourceTitle "playchess.com"]
[Source "ChessBase"]
[SourceQuality "1"]
[TimeControl "40/5400+30:1800+30"]

1. e4 {[%emt 0:00:33]} d6 {[%emt 0:00:28]} 2. d4 {[%emt 0:00:05]} Nf6 {[%emt 0:00:03]} 3. Nc3 {[%emt 0:00:05]} e5 {[%emt 0:00:14]} 4. Nf3 {[%emt 0:00:05]} Nbd7 {[%emt 0:00:06]} 5. Rg1 {[%emt 0:00:05]} h5 {[%emt 0:01:11]} 6. h3 {[%emt 0:00:04]} exd4 {[%emt 0:03:11]} 7. Qxd4 {[%emt 0:04:00]} Nc5 {[%emt 0:03:01]} 8. Be3 {[%emt 0:09:24]} Qe7 {[%emt 0:07:21]} 9. Nd5 {[%emt 0:07:37]} Nxd5 {[%emt 0:03:14]} 10. exd5 {[%emt 0:01:22]} Qe4 {[%emt 0:03:00]} 11. O-O-O {[%emt 0:20:11]} Bd7 {[%emt 0:02:25]} 12. Re1 {[%emt 0:06:16]} O-O-O {[%emt 0:01:57]} 13. Qxe4 {[%emt 0:04:59]} Nxe4 {[%emt 0:00:07]} 14. Bxa7 {[%emt 0:01:33]} Nf6 {[%emt 0:00:06]} 15. Bc4 {[%emt 0:03:36]} g6 {[%emt 0:05:18]} 16. Bd4 {[%emt 0:03:57]} Bg7 {[%emt 0:01:00]} 17. Re7 {[%emt 0:02:01]} Rdf8 {[%emt 0:00:21]} 18. Rge1 {[%emt 0:03:28]} Kd8 {[%emt 0:02:39]} 19. Ng5 {[%emt 0:05:35]} Be8 {[%emt 0:00:12]} 20. c3 {[%emt 0:05:41]} Kc8 {[%emt 0:02:00]} 21. b4 {[%emt 0:01:34]} Kd8 {[%emt 0:00:53]} 22. a4 {[%emt 0:00:47]} 1-0

[Event "Czech Youth U14 Boys 2024"]
[Site "Kouty nad Desnou"]
[Date "2024.03.13"]
[Round "6.6"]
[White "Kutil, Adam"]
[Black "Komarek, Tobias"]
[Result "1/2-1/2"]
[ECO "B19"]
[WhiteElo "1820"]
[BlackElo "1822"]
[Annotator "NA RC"]
[PlyCount "120"]
[EventDate "2024.03.10"]
[EventType "swiss"]
[EventCountry "CZE"]
[SourceTitle "playchess.com"]
[Source "ChessBase"]
[SourceQuality "1"]
[TimeControl "40/5400+30:1800+30"]

1. e4 {[%emt 0:00:19]} c6 {[%emt 0:00:09]} 2. Nc3 {[%emt 0:01:19]} d5 {[%emt 0:00:23]} 3. d4 {[%emt 0:02:35]} dxe4 {[%emt 0:00:12]} 4. Nxe4 {[%emt 0:00:04]} Bf5 {[%emt 0:00:15]} 5. Ng3 {[%emt 0:00:04]} Bg6 {[%emt 0:00:10]} 6. Nf3 {[%emt 0:00:06]} Nd7 {[%emt 0:01:08]} 7. h4 {[%emt 0:00:22]} h6 {[%emt 0:00:32]} 8. h5 {[%emt 0:00:21]} Bh7 {[%emt 0:00:05]} 9. Bd3 {[%emt 0:00:10]} Bxd3 {[%emt 0:00:23]} 10. Qxd3 {[%emt 0:00:05]} Ngf6 {[%emt 0:01:26]} 11. c4 {[%emt 0:01:03]} e6 {[%emt 0:00:36] B19: Classical Caro-Kann: 4...Bf5 main line.} 12. Bf4 {[%emt 0:01:27]} Bb4+ {[%emt 0:17:45]} 13. Bd2 {[%emt 0:02:24]} Bxd2+ {[%emt 0:02:37]} 14. Qxd2 {[%emt 0:00:48]} c5 {[%emt 0:03:28]} 15. O-O-O {[%emt 0:04:46]} cxd4 {[%emt 0:11:54]} 16. Qb4 {[%emt 0:07:00]} Qb6 {[%emt 0:06:01]} 17. Qxb6 {[%emt 0:02:18]} Nxb6 {[%emt 0:01:19]} 18. Rxd4 {[%emt 0:01:25]} O-O {[%emt 0:02:58]} 19. Ne5 {[%emt 0:05:29]} Rac8 {[%emt 0:02:26]} 20. b3 {[%emt 0:00:41]} Nbd5 {[%emt 0:05:00]} 21. Kb2 {[%emt 0:06:28]} Nb4 {[%emt 0:07:48]} 22. Nd7 {[%emt 0:04:14]} Nxd7 {[%emt 0:01:05]} 23. Rxd7 {[%emt 0:00:09]} Rb8 {[%emt 0:00:56]} 24. Rhd1 {[%emt 0:04:04]} Nc6 {[%emt 0:09:06]} 25. Ne4 {[%emt 0:10:43]} Rfd8 {[%emt 0:04:57]} 26. Nc5 {[%emt 0:03:18]} b6 {[%emt 0:01:14]} 27. Na6 {[%emt 0:14:22]} Rbc8 {[%emt 0:00:20]} 28. Kc3 {[%emt 0:01:37]} Kf8 {[%emt 0:04:09]} 29. b4 {[%emt 0:03:31]} Ke8 {[%emt 0:01:37]} 30. Rxd8+ {[%emt 0:00:33]} Rxd8 {[%emt 0:00:56]} 31. Rxd8+ {[%emt 0:06:51]} Kxd8 {[%emt 0:00:50]} 32. b5 {[%emt 0:00:29]} Ne7 {[%emt 0:07:52]} 33. a4 {[%emt 0:02:38]} g6 {[%emt 0:03:05]} 34. Kd4 {[%emt 0:02:59]} Kd7 {[%emt 0:04:15]} 35. Ke5 {[%emt 0:00:42]} Ng8 {[%emt 0:00:31]} 36. Nb8+ {[%emt 0:02:10]} Kc7 {[%emt 0:00:28]} 37. Nc6 {[%emt 0:00:49]} gxh5 {[%emt 0:00:33]} 38. Nxa7 {[%emt 0:04:26]} Kd7 {[%emt 0:00:24]} 39. Nc6 {[%emt 0:05:44]} f6+ {[%emt 0:00:09]} 40. Kd4 {[%emt 0:00:29]} Kd6 {[%emt 0:00:53]} 41. f4 {[%emt 0:04:53]} (41. a5 e5+ 42. Kc3 bxa5 43. Nxa5 Ne7) 41... h4 {[%emt 0:01:07]} 42. a5 {[%emt 0:04:12]} e5+ {[%emt 0:03:14]} 43. fxe5+ {[%emt 0:13:16]} fxe5+ {[%emt 0:00:08]} 44. Nxe5 {[%emt 0:00:38]} bxa5 {[%emt 0:00:12]} 45. c5+ {[%emt 0:00:18]} Kc7 {[%emt 0:00:07]} 46. Ng6 {[%emt 0:06:14]} (46. Kc4 $142 a4 47. b6+ Kd8 48. c6) 46... Nf6 {[%emt 0:02:26]} 47. Nxh4 {[%emt 0:00:10]} a4 {[%emt 0:00:50]} 48. Kc4 $11 {[%emt 0:03:27]} a3 {[%emt 0:03:35]} 49. Kb3 {[%emt 0:01:05]} Ne4 {[%emt 0:00:17]} 50. Kxa3 {[%emt 0:00:41]} Nxc5 {[%emt 0:00:07]} 51. Kb4 {[%emt 0:00:12]} Nd3+ {[%emt 0:00:09]} 52. Kc4 {[%emt 0:00:11]} Nf4 {[%emt 0:00:21]} 53. g4 {[%emt 0:00:58]} Kb6 {[%emt 0:03:04]} 54. Nf5 {[%emt 0:00:46]} Ng2 {[%emt 0:00:11]} 55. Kb4 {[%emt 0:00:23]} Ne1 {[%emt 0:00:48]} 56. Nxh6 {[%emt 0:00:31]} Nd3+ {[%emt 0:00:45]} 57. Ka4 {[%emt 0:01:03]} Nc5+ {[%emt 0:00:14]} 58. Kb4 {[%emt 0:00:09]} Nd3+ {[%emt 0:00:05]} 59. Kc3 {[%emt 0:00:59]} Ne5 {[%emt 0:00:22]} 60. g5 {[%emt 0:00:27]} Kxb5 {[%emt 0:00:08]} 1/2-1/2

[Event "Czech Youth U14 Boys 2024"]
[Site "Kouty nad Desnou"]
[Date "2024.03.13"]
[Round "6.7"]
[White "Topencik, Bruno"]
[Black "Roubal, Matyas"]
[Result "1-0"]
[ECO "E73"]
[WhiteElo "2006"]
[BlackElo "1849"]
[Annotator "RC"]
[PlyCount "97"]
[EventDate "2024.03.10"]
[EventType "swiss"]
[EventCountry "CZE"]
[SourceTitle "playchess.com"]
[Source "ChessBase"]
[SourceQuality "1"]
[TimeControl "40/5400+30:1800+30"]

1. d4 {[%emt 0:00:05]} Nf6 {[%emt 0:00:06]} 2. c4 {[%emt 0:00:05]} g6 {[%emt 0:00:07]} 3. Nc3 {[%emt 0:00:05]} Bg7 {[%emt 0:00:04]} 4. e4 {[%emt 0:00:07]} d6 {[%emt 0:00:05]} 5. Be2 {[%emt 0:00:06]} O-O {[%emt 0:00:10]} 6. Be3 {[%emt 0:00:43]} c5 {[%emt 0:08:16]} 7. d5 {[%emt 0:02:01]} e6 {[%emt 0:01:18]} 8. Nf3 {[%emt 0:04:16]} exd5 {[%emt 0:00:34]} 9. exd5 {[%emt 0:00:13]} Re8 {[%emt 0:06:49]} 10. O-O {[%emt 0:04:16]} Bf5 {[%emt 0:04:07]} 11. h3 {[%emt 0:07:35]} Ne4 {[%emt 0:02:18]} 12. Nxe4 {[%emt 0:10:44]} Bxe4 {[%emt 0:00:06]} 13. Qd2 {[%emt 0:02:11]} Qf6 {[%emt 0:03:58]} 14. Ng5 {[%emt 0:05:12]} Bf5 {[%emt 0:09:35]} 15. g4 {[%emt 0:03:56]} Bc8 {[%emt 0:01:01]} 16. Rab1 {[%emt 0:02:02]} h6 {[%emt 0:05:08]} 17. Nf3 {[%emt 0:00:37]} Nd7 {[%emt 0:07:00]} 18. Rfe1 {[%emt 0:08:40]} g5 {[%emt 0:04:30]} 19. Kg2 {[%emt 0:04:29]} Nf8 {[%emt 0:02:58]} 20. Bd3 {[%emt 0:04:17]} Bd7 {[%emt 0:02:39]} 21. a3 {[%emt 0:05:11]} Ng6 {[%emt 0:06:24]} 22. b4 {[%emt 0:03:26]} b6 {[%emt 0:00:42]} 23. bxc5 {[%emt 0:02:58]} dxc5 {[%emt 0:00:07]} 24. Re2 {[%emt 0:02:03]} Qd6 {[%emt 0:06:34]} 25. Rbe1 {[%emt 0:05:26]} Be5 {[%emt 0:07:19]} 26. Bxg6 {[%emt 0:05:18]} Qxg6 {[%emt 0:03:09]} 27. Bxc5 {[%emt 0:02:55]} Bf4 {[%emt 0:01:51]} 28. Be3 {[%emt 0:00:13]} Bd6 {[%emt 0:00:52]} 29. Bd4 {[%emt 0:05:56]} Rxe2 {[%emt 0:02:34]} 30. Rxe2 {[%emt 0:00:36]} f5 {[%emt 0:00:17]} 31. Qd3 {[%emt 0:02:50]} Qf7 {[%emt 0:01:54]} 32. Be5 {[%emt 0:04:48]} fxg4 {[%emt 0:01:50]} 33. Bxd6 {[%emt 0:01:05]} Qxf3+ {[%emt 0:01:00]} 34. Qxf3 {[%emt 0:00:06]} gxf3+ {[%emt 0:00:03]} 35. Kxf3 {[%emt 0:00:07]} Bxh3 {[%emt 0:00:16]} 36. Re7 {[%emt 0:01:35]} Bf5 {[%emt 0:08:17]} 37. Bc7 {[%emt 0:01:23]} Kf8 {[%emt 0:00:30]} 38. Re5 {[%emt 0:00:42]} Bd7 {[%emt 0:00:26]} 39. Bd6+ {[%emt 0:00:54]} Kg8 {[%emt 0:00:03]} 40. Re7 {[%emt 0:00:35]} Bf5 {[%emt 0:02:09]} 41. Be5 {[%emt 0:08:04]} Bc2 {[%emt 0:07:08]} 42. d6 {[%emt 0:04:34]} Ba4 {[%emt 0:00:16]} 43. Rg7+ {[%emt 0:02:38]} Kf8 {[%emt 0:00:10]} 44. Rh7 {[%emt 0:00:34]} Re8 {[%emt 0:00:55]} 45. d7 {[%emt 0:01:13]} Ra8 {[%emt 0:01:58]} 46. Bf6 {[%emt 0:02:59]} Bxd7 {[%emt 0:00:11]} 47. Rxd7 {[%emt 0:00:20]} Rc8 {[%emt 0:00:42]} 48. Rd8+ {[%emt 0:00:23]} Rxd8 {[%emt 0:00:08]} 49. Bxd8 {[%emt 0:00:05]} 1-0